Cogmind - Beta 11.1 @@@ ROGUE MODE // 2022.05.16 @ 00:35:54 Player: Decinym Result: Destroyed by G-67 Veteran with Plasma Rifle Performance ------------- Evolutions (4) 2000 Regions Visited (12) 2400 Robots Destroyed (131) 655 Value Destroyed (4772) 4772 Prototype IDs (40) 800 Alien Tech Used (0) 0 Bonus (2262) 2262 TOTAL SCORE: 12889 Bonus ------- High Alert Combat Kills 456 Follower Combat Kills 1762 Aligned with FarCom 300 Met Data Miner 300 Friendly Fire -556 Cogmind --------- Core Integrity 0/850 Matter 293/300 Energy 700/700 System Corruption 48% Temperature Cool (0) Movement Core (50) Location -6/Lower Caves Parts ------- > --- POWER (1) -------- (None) > --- PROPULSION (4) --- Carbon-fiber Leg > --- UTILITY (8) ------ Experimental Energy Well Experimental Utility Shielding Hacking Suite > --- WEAPON (2) ------- (None) > --- INVENTORY (5) ---- Heavy Antimatter Reactor Cloak of Protection Cooled Proton Cannon Field Lobotomy Kit (3) Peak State ------------ > --- POWER ------------ Improved Deuterium Engine > --- PROPULSION ------- Carbon-fiber Leg Flexi-carbon Leg Flexi-carbon Leg Flexi-carbon Leg > --- UTILITY ---------- Advanced Heat Sink Advanced Heat Sink Huge Storage Unit Improved Sensor Array Improved Signal Interpreter Advanced Targeting Computer Armor Integrity Analyzer Experimental Utility Shielding > --- WEAPON ----------- Advanced Assault Cannon Advanced Assault Cannon > --- INVENTORY -------- Light Antimatter Reactor Advanced Heat Sink Large Matter Pod Improved Terrain Scanner Makeshift Salvage Targeting Computer Advanced Particle Charger Cloak of Protection Experimental Utility Shielding Experimental Utility Shielding Hardened Medium Armor Plating Makeshift Armor Plating Hacking Suite Supersonic Drone Bay EM Pulse Cannon Gauss Rifle Advanced EMP Blaster Field Lobotomy Kit Powered Hammer Makeshift Sword Sapper Charge Sapper Charge Sapper Charge Sapper Charge [Rating: 72] Favorites ----------- Power Improved Ion Engine Engine Improved Ion Engine Power Core Neutrino Core Reactor Light Antimatter Reactor Propulsion Light Treads Treads Light Treads Leg Flexi-carbon Leg Wheel Wheel Utility Huge Storage Unit Device Advanced Heat Sink Storage Huge Storage Unit Processor Improved Signal Interpreter Hackware Hacking Suite Protection Hardened Light Armor Plating Weapon Precision Assault Rifle Energy Gun Beam Rifle Energy Cannon EM Pulse Cannon Ballistic Gun Precision Assault Rifle Ballistic Cannon Advanced Assault Cannon Launcher Heavy Missile Launcher Special Weapon Enhanced Flamer Impact Weapon Powered Hammer Slashing Weapon Makeshift Sword Build | -11 -10 -10 -10 -9 -8 -7 -7 -7 -7 -6 -6 -6 ------- Run | Scr Mat Min Exi Min Mat Fac Low Low Dat Pro Fac Low Slots Evolved 8 | . . . . . 4 2 . . . . 2 . Power . | . . . . . . . . . . . . . Propulsion 2 | . . . . . 1 . . . . . 1 . Utility 6 | . . . . . 3 2 . . . . 1 . Weapon . | . . . . . . . . . . . . . Parts Attached 176 | . 7 18 3 1 38 10 22 9 1 6 61 . Power 13 | . . 2 . . 3 . 2 1 . 1 4 . Engine 9 | . . 1 . . 3 . 2 1 . . 2 . Core 2 | . . 1 . . . . . . . 1 . . Reactor 2 | . . . . . . . . . . . 2 . Propulsion 51 | . 2 6 . . 14 1 8 . . 2 18 . Treads 24 | . 2 3 . . 11 . 3 . . 2 3 . Leg 9 | . . 3 . . . . . . . . 6 . Wheel 18 | . . . . . 3 1 5 . . . 9 . Hover . | . . . . . . . . . . . . . Flight . | . . . . . . . . . . . . . Utility 59 | . 2 7 3 . 11 7 3 4 . 3 19 . Device 23 | . . 3 . . 5 4 1 2 . 2 6 . Storage 8 | . 1 1 3 . 2 . . . . . 1 . Processor 8 | . . . . . . 3 . 1 . . 4 . Hackware 1 | . . . . . . . . . . . 1 . Protection 19 | . 1 3 . . 4 . 2 1 . 1 7 . Artifact . | . . . . . . . . . . . . . Weapon 53 | . 3 3 . 1 10 2 9 4 1 . 20 . Energy Gun 6 | . 2 2 . . 1 . . . . . 1 . Energy Cannon 6 | . . . . . . . . 1 1 . 4 . Ballistic Gun 17 | . 1 1 . 1 6 . 3 1 . . 4 . Ballistic Cannon 2 | . . . . . . . . . . . 2 . Launcher 13 | . . . . . 3 . 3 2 . . 5 . Special Weapon 7 | . . . . . . 2 3 . . . 2 . Impact Weapon 1 | . . . . . . . . . . . 1 . Slashing Weapon 1 | . . . . . . . . . . . 1 . Piercing Weapon . | . . . . . . . . . . . . . Special Melee Weapon . | . . . . . . . . . . . . . Unidentified Prototypes 8 | . . 1 . . 4 . . . . . 3 . Corrupted Parts 4 | . . . . . . . . . . . 4 . System Corruption 25 | . . . . . . . . . . . 25 . Parts Lost 65 | . . 9 . 1 4 1 9 1 . 4 36 . Power 6 | . . 1 . . . . 2 . . . 3 . Propulsion 27 | . . 3 . . 1 . 5 . . 2 16 . Utility 14 | . . 2 . . 3 1 . 1 . 1 6 . Weapon 18 | . . 3 . 1 . . 2 . . 1 11 . Highest Loss Streak 10 | . . 6 . 1 3 1 9 1 . 2 10 . To Critical Strikes 1 | . . . . . . . . . . . 1 . Average Slot Usage (%) 95 | . 97 95 100 100 98 98 98 96 84 96 90 26 Engine 8 | . 14 12 14 14 8 7 6 6 7 2 2 . Treads 14 | . 23 16 28 28 23 . 13 . . 5 8 . Leg 3 | . 4 9 . . . . . . . . 7 6 Wheel 6 | . . . . . 2 23 8 23 23 16 6 . Device 13 | . . 9 14 14 17 18 16 10 7 6 14 . Storage 12 | . 14 8 14 14 18 15 15 15 15 15 8 6 Processor 7 | . . . . . . 11 15 13 15 15 18 . Protection 7 | . 12 9 . . 8 6 5 9 7 14 6 6 Energy Gun 5 | . 16 17 14 2 . . . . . . 1 . Ballistic Gun 9 | . 10 8 14 25 17 14 6 5 . . 3 . Special Weapon 1 | . . . . . . . 5 7 7 7 . . Naked Turns 3 | . . . . . . . . . . . 3 . Heaviest Build 125 | 13 97 100 94 54 110 110 108 112 108 116 125 . Greatest Support 84 | 20 40 40 40 40 79 30 84 32 32 32 84 . Greatest Overweight (x) 11 | . 2 3 2 1 3 3 8 3 3 10 11 . Average Overweight (x) 1 | . . . . 1 . 3 2 2 3 4 1 . Largest Inventory Capacity 25 | 8 25 25 25 20 25 25 25 25 25 25 25 5 Average Capacity 21 | 8 14 16 19 20 20 25 25 25 25 25 23 5 Most Carried 25 | 5 11 13 20 20 25 25 25 25 22 25 25 4 Average Carried 18 | 4 8 9 12 19 19 24 23 24 22 22 20 4 Final Capacity 25 | 8 25 25 20 20 25 25 25 25 25 25 5 5 Final Carried 25 | 4 11 13 20 19 25 25 25 22 22 25 5 4 Class Distribution -------------------- 51% | Mutant 45% | Scavenger-Mutant Dominant Class ---------------- Mutant | -10/Materials Scavenger-Mutant | -10/Mines Scavenger-Mutant | -10/Exiles Scavenger-Mutant | -9/Mines Mutant | -8/Materials Mutant | -7/Factory Mutant | -7/Lower Caves Mutant | -7/Lower Caves Commander-Mutant | -7/Data Miner Mutant | -6/Proximity Caves Scavenger-Mutant | -6/Factory Scavenger-Mutant | -6/Lower Caves Resources | -11 -10 -10 -10 -9 -8 -7 -7 -7 -7 -6 -6 -6 ----------- Run | Scr Mat Min Exi Min Mat Fac Low Low Dat Pro Fac Low Matter Collected 4252 | 197 60 266 64 35 1270 495 455 112 8 157 1133 . Remotely . | . . . . . . . . . . . . . Salvage Created 5275 | . 154 487 . 47 1919 560 315 166 . 217 1410 . Parts 256 | . 6 31 . 5 91 24 12 9 . 1 77 . Haulers Intercepted 6 | . 1 . . . 4 1 . . . . . . Recyclers Shooed 9 | . . . . . 1 3 . . . . 5 . Parts Field Recycled . | . . . . . . . . . . . . . Retrieved Matter . | . . . . . . . . . . . . . Parts Self-Destructed 37 | . . . . . . . 6 11 . 20 . . Prevented 2 | . . . . . . . . 1 . 1 . . Kills | -11 -10 -10 -10 -9 -8 -7 -7 -7 -7 -6 -6 -6 ------- Run | Scr Mat Min Exi Min Mat Fac Low Low Dat Pro Fac Low Combat Hostiles Destroyed 99 | . 2 14 . 3 30 5 11 5 . 4 25 . Guns 58 | . 2 14 . 3 25 5 3 . . . 6 . Cannons 7 | . . . . . . . . . . 1 6 . AOE 28 | . . . . . 5 . 8 5 . . 10 . Classes Destroyed 17 | . 2 3 . . 7 1 2 . . . 2 . Worker 10 | . . 1 . . 1 . . . . . 8 . Builder 3 | . . . . . 1 . . . . . 2 . Tunneler 1 | . . . . . . . . . . . 1 . Hauler 6 | . 1 . . . 4 1 . . . . . . Recycler 6 | . . . . . 2 4 . . . . . . Operator 2 | . . . . . 1 . . . . . 1 . Watcher 3 | . . . . . 2 . . . . . 1 . Swarmer 18 | . . 6 . 3 . . 5 . . . 4 . Grunt 52 | . 2 6 . . 22 2 . 4 . 2 14 . Brawler 1 | . . . . . . . . . . . 1 . Duelist 2 | . . . . . 1 . . 1 . . . . Sentry 9 | . . 2 . . 4 1 . . . 1 1 . Specialist 4 | . . . . . 2 . . . . . 2 . Hunter 1 | . . . . . . . . . . . 1 . Programmer 2 | . . . . . . 2 . . . . . . Heavy 3 | . . . . . 1 . . . . . 2 . Enhanced Grunt 1 | . . . . . . . . . . 1 . . Thug 5 | . . . . . . . 5 . . . . . Savage 1 | . . . . . . . 1 . . . . . Mutant 1 | . . . . . . . 1 . . . . . Best Kill Streak 9 | . 3 5 . 2 9 4 7 3 . 1 7 . Combat Bots Only 7 | . 2 5 . 2 6 2 7 3 . 1 4 . Max Kills in Single Turn 4 | . 1 1 . 1 2 2 3 2 . 1 4 . Gunslinging 1 | . . . . . 1 . . . . . . . Exploded 3 | . . . . . 2 . 3 2 . . 3 . Melee . | . . . . . . . . . . . . . Uniques/NPCs Destroyed . | . . . . . . . . . . . . . Combat | -11 -10 -10 -10 -9 -8 -7 -7 -7 -7 -6 -6 -6 -------- Run | Scr Mat Min Exi Min Mat Fac Low Low Dat Pro Fac Low Damage Taken 10056 | . 154 1408 . 162 1233 484 1058 113 . 617 4804 23 Core 1514 | . . 129 . 14 71 71 253 18 . 92 843 23 Absorbed by Shields 461 | . . . . . 286 . . . . . 175 . Redirected to Shielding 245 | . . 1 . . . . . . . . 244 . Regen/Repaired (Parts) 293 | . . . . . 112 181 . . . . . . Core Remaining (%) 66 | 100 . . . 42 87 . . . . 38 . . Volleys Fired 392 | . 11 65 . 9 99 27 31 10 . 32 108 . Largest 2 | . 2 2 . 2 2 2 2 1 . 1 2 . Hottest 160 | . 112 112 . 79 56 56 160 80 . 80 113 . Shots Fired 634 | . 15 97 . 18 191 54 54 10 . 35 160 . Gun 472 | . 15 97 . 18 182 54 38 . . . 68 . Cannon 86 | . . . . . . . . . . 5 81 . Launcher 28 | . . . . . 9 . 6 5 . . 8 . Special 48 | . . . . . . . 10 5 . 30 3 . Kinetic 425 | . 5 26 . 12 182 54 38 . . . 108 . Thermal 133 | . 10 71 . 6 . . 10 5 . 30 1 . Explosive 23 | . . . . . 9 . 6 5 . . 3 . Electromagnetic 51 | . . . . . . . . . . 5 46 . Robot Hit Streak 36 | . 3 24 . 3 16 36 16 12 . 14 19 . Robot Miss Streak 6 | . 2 3 . 6 2 1 2 1 . 1 4 . Penetration Max 1 | . . . . . . . . . . . 1 . Secondary Targets 9 | . . 1 . 1 5 . 1 . . . 1 . Max Gunslinging Chain 1 | . . 1 . 1 1 . 1 . . . 1 . Shots Hit Robots 484 | . 9 69 . 8 143 46 45 8 . 30 126 . Core Hits 264 | . 5 28 . 3 80 16 24 14 . 16 78 . Critical Kills . | . . . . . . . . . . . . . Critical Parts Destroyed 2 | . . . . . 1 . . . . . 1 . Critical Strikes 11 | . . 1 . . 1 . . . . 5 4 . Burn 6 | . . 1 . . . . . . . 5 . . Destroy 2 | . . . . . 1 . . . . . 1 . Blast 3 | . . . . . . . . . . . 3 . Melee Attacks 7 | . . . . . . . . . . . 7 . Impact 6 | . . . . . . . . . . . 6 . Slashing 1 | . . . . . . . . . . . 1 . Piercing . | . . . . . . . . . . . . . Sneak Attacks . | . . . . . . . . . . . . . Combat Hostiles . | . . . . . . . . . . . . . Follow-up Attacks . | . . . . . . . . . . . . . Damage Inflicted 13700 | . 123 1008 . 118 3617 1019 1690 934 . 359 4832 . Guns 6779 | . 123 1003 . 118 2757 1019 661 . . . 1098 . Cannons 1649 | . . . . . . . . . . 68 1581 . Explosions 4814 | . . . . . 860 . 921 890 . . 2143 . Melee . | . . . . . . . . . . . . . Ramming 5 | . . 5 . . . . . . . . . . Kinetic 6895 | . 49 267 . 74 2757 1019 661 . . . 2068 . Thermal 1588 | . 74 736 . 44 . . 108 44 . 291 291 . Explosive 3085 | . . . . . 807 . 921 890 . . 467 . Electromagnetic 2127 | . . . . . 53 . . . . 68 2006 . Impact . | . . . . . . . . . . . . . Slashing . | . . . . . . . . . . . . . Piercing . | . . . . . . . . . . . . . Highest Corruption 50 | . . . . . 3 1 1 1 1 41 50 48 Average Corruption 10 | . . . . . 3 1 1 1 1 21 34 48 Corruption Purged . | . . . . . . . . . . . . . Corruption Blocked . | . . . . . . . . . . . . . Effects 124 | . . . . . 29 . 8 4 . 25 58 . Message Errors 23 | . . . . . 7 . 1 3 . 6 6 . Matter Fused 27 | . . . . . 7 . 2 . . 7 11 . Heat Flow Errors 14 | . . . . . 5 . 1 . . 1 7 . Energy Discharges 15 | . . . . . 3 . 2 . . 3 7 . Parts Rejected 3 | . . . . . . . . . . 1 2 . Data Loss (minor) 16 | . . . . . 3 . 1 1 . 3 8 . Data Loss (major) 2 | . . . . . 1 . . . . . 1 . Misfires 8 | . . . . . 2 . 1 . . 3 2 . Alerts 2 | . . . . . . . . . . 1 1 . Misdirections 3 | . . . . . . . . . . . 3 . Weapon Failures 11 | . . . . . 1 . . . . . 10 . Overload Shots . | . . . . . . . . . . . . . Overflow Damage 150 | . . . . . 42 . 2 12 . . 94 . Projectiles 28 | . . . . . . . . . . . 28 . Explosions 122 | . . . . . 42 . 2 12 . . 66 . Melee . | . . . . . . . . . . . . . Knockbacks 11 | . . . . . . . . . . . 11 . Impact . | . . . . . . . . . . . . . Kinetic 10 | . . . . . . . . . . . 10 . Secondary 1 | . . . . . . . . . . . 1 . Self-Inflicted Damage 388 | . . . . . 48 . 107 68 . . 165 . Shots 14 | . . . . . 2 . 4 1 . . 7 . Rammed . | . . . . . . . . . . . . . Targets Rammed 2 | . . 2 . . . . . . . . . . Kicked 2 | . . 2 . . . . . . . . . . Crushed . | . . . . . . . . . . . . . Highest Temperature 379 | . 270 379 . . 187 . 97 50 . 135 242 . Average Temperature 109 | . 169 147 . . 75 . 36 18 . 22 69 . Received Heat Transfer 2654 | . 90 378 . . 390 120 252 27 . 186 1211 . Effects 6 | . 3 3 . . . . . . . . . . Shutdowns 1 | . . 1 . . . . . . . . . . Energy Bleed 1 | . . 1 . . . . . . . . . . Interference 3 | . 3 . . . . . . . . . . . Matter Decay 1 | . . 1 . . . . . . . . . . Siege Activations . | . . . . . . . . . . . . . Robots Corrupted 3 | . . . . . . . . . . . 3 . Combat Hostiles 3 | . . . . . . . . . . . 3 . Parts Fried 10 | . . . . . . . . . . . 10 . Impact Corruptions . | . . . . . . . . . . . . . Robots Melted 4 | . . . . . . . 1 . . 3 . . Combat Hostiles 3 | . . . . . . . . . . 3 . . Parts Melted 8 | . . 3 . . . . . . . 5 . . Heat Transferred 6717 | . 185 1961 . 111 . . 800 320 . 2960 380 . Parts Sabotaged . | . . . . . . . . . . . . . Parts Stolen 7 | . . . . . . . 1 6 . . . . Parts Stripped . | . . . . . . . . . . . . . Power Chain Reactions 6 | . . . . . 1 . . . . . 5 . Missiles Intercepted . | . . . . . . . . . . . . . Latent Energy Used 746 | . . . . . . . . . . . 746 . LE Corruption 14 | . . . . . . . . . . . 14 . Alert | -11 -10 -10 -10 -9 -8 -7 -7 -7 -7 -6 -6 -6 ------- Run | Scr Mat Min Exi Min Mat Fac Low Low Dat Pro Fac Low Peak Influence 1279 | . 72 160 . 60 590 266 . . . . 1279 . Initial 201 | . . 27 . . 23 177 . . . . 201 . Average 267 | . 42 31 . 51 200 169 . . . . 568 . Maximum Alert Level 4 | . . . . . 2 1 . . . . 4 . Low Security (%) 56 | 100 100 100 . 100 68 80 . . . . . . Level 1 20 | . . . . . 16 19 . . . . 42 . Level 2 13 | . . . . . 14 . . . . . 27 . Level 3 4 | . . . . . . . . . . . 14 . Level 4 4 | . . . . . . . . . . . 14 . Level 5 . | . . . . . . . . . . . . . High Security . | . . . . . . . . . . . . . Max Security . | . . . . . . . . . . . . . Squads Dispatched 27 | . . . . . 6 3 . . . . 18 . Investigation 2 | . . . . . . 1 . . . . 1 . Extermination 4 | . . . . . . 2 . . . . 2 . Reinforcement 17 | . . . . . 5 . . . . . 12 . Assault . | . . . . . . . . . . . . . Garrison 4 | . . . . . 1 . . . . . 3 . Intercept . | . . . . . . . . . . . . . Searches Triggered . | . . . . . . . . . . . . . Construction Impeded 6 | . . . . . 1 . . . . . 5 . Haulers Reinforced 1 | . . . . . . . . . . . 1 . Active Scanning Responses . | . . . . . . . . . . . . . Cargo Convoy Interrupts 1 | . . . . . . . . . . . 1 . Stealth | -11 -10 -10 -10 -9 -8 -7 -7 -7 -7 -6 -6 -6 --------- Run | Scr Mat Min Exi Min Mat Fac Low Low Dat Pro Fac Low Distress Signals 7 | . 1 . . . 4 . . . . . 2 . Communications Jammed . | . . . . . . . . . . . . . Distress Signals . | . . . . . . . . . . . . . Times Spotted 194 | . 4 15 . 3 49 7 15 11 . 23 63 4 Peak Tracking Total 7 | . 3 3 . 3 6 3 7 5 . 5 7 4 Tactical Retreats 5 | . 1 . . . . . . . . 1 3 . Traps | -11 -10 -10 -10 -9 -8 -7 -7 -7 -7 -6 -6 -6 ------- Run | Scr Mat Min Exi Min Mat Fac Low Low Dat Pro Fac Low Traps Triggered 6 | . . . . . 1 2 . . . . 3 . Indirectly 1 | . . . . . . . . . . . 1 . Trap Hack Attempts . | . . . . . . . . . . . . . Triggered . | . . . . . . . . . . . . . Disarmed . | . . . . . . . . . . . . . Reprogrammed . | . . . . . . . . . . . . . Reused . | . . . . . . . . . . . . . Traps Extracted . | . . . . . . . . . . . . . Installed . | . . . . . . . . . . . . . Triggered 3 | . . . . . . . . . . . 3 . Time Bombs Activated 2 | . . . . . . . . . . . 2 . Exploded 2 | . . . . . . . . . . . 2 . Machines | -11 -10 -10 -10 -9 -8 -7 -7 -7 -7 -6 -6 -6 ---------- Run | Scr Mat Min Exi Min Mat Fac Low Low Dat Pro Fac Low Machines Disabled 18 | . . 1 . . 5 . . . . . 12 . Max in Single Turn 2 | . . 1 . . 2 . . . . . 2 . Machines Sabotaged . | . . . . . . . . . . . . . Garrisons Compromised 1 | . . . . . . . . . . . 1 . Overloaded Fab Kills . | . . . . . . . . . . . . . Hacking | -11 -10 -10 -10 -9 -8 -7 -7 -7 -7 -6 -6 -6 --------- Run | Scr Mat Min Exi Min Mat Fac Low Low Dat Pro Fac Low Machines Accessed 20 | . 1 . 2 . 7 3 1 . 4 . 2 . Terminals 10 | . 1 . . . 5 2 . . . . 2 . Fabricators 1 | . . . . . . 1 . . . . . . Repair Stations 1 | . . . . . 1 . . . . . . . Recycling Units . | . . . . . . . . . . . . . Scanalyzers 1 | . . . . . 1 . . . . . . . Garrison Access . | . . . . . . . . . . . . . Total Hacks 70 | . 2 . 2 . 22 7 1 . 32 . 4 . Successful 55 | . 1 . 2 . 13 4 1 . 32 . 2 . Failed 15 | . 1 . . . 9 3 . . . . 2 . Catastrophic 4 | . . . . . 1 2 . . . . 1 . Database Lockouts . | . . . . . . . . . . . . . Manual 17 | . 2 . 1 . 9 4 . . . . 1 . Terminals 24 | . 2 . . . 13 5 . . . . 4 . Fabricators 2 | . . . . . . 2 . . . . . . Repair Stations 7 | . . . . . 7 . . . . . . . Recycling Units . | . . . . . . . . . . . . . Scanalyzers 2 | . . . . . 2 . . . . . . . Garrison Access . | . . . . . . . . . . . . . Terminal Hacks 42 | . . . 2 . 4 1 1 . 32 . 2 . Record 12 | . . . 1 . . . . . 11 . . . Part Schematic 12 | . . . . . . . . . 12 . . . Robot Schematic 6 | . . . . . . . . . 6 . . . Robot Analysis 1 | . . . . . 1 . . . . . . . Prototype ID Bank 3 | . . . . . . . . . 3 . . . Open Door 1 | . . . . . . . 1 . . . . . Open DSF 1 | . . . . . . . . . . . 1 . Branch Access Points 3 | . . . . . 1 1 . . . . 1 . Unreport Threat 1 | . . . . . 1 . . . . . . . Dispatch Records 1 | . . . . . 1 . . . . . . . EX-Prototype ID Bank 1 | . . . 1 . . . . . . . . . Fabricator Hacks 1 | . . . . . . 1 . . . . . . Build 1 | . . . . . . 1 . . . . . . Repair Station Hacks 6 | . . . . . 6 . . . . . . . Scan Component 3 | . . . . . 3 . . . . . . . Repair 3 | . . . . . 3 . . . . . . . Recycling Unit Hacks . | . . . . . . . . . . . . . Scanalyzer 2 | . . . . . 2 . . . . . . . Insert Component 1 | . . . . . 1 . . . . . . . Analyze 1 | . . . . . 1 . . . . . . . Garrison Access Hacks . | . . . . . . . . . . . . . Unauthorized Hacks 4 | . 1 . . . 1 2 . . . . . . Terminals 4 | . 1 . . . 1 2 . . . . . . Assimilate 1 | . . . . . 1 . . . . . . . Botnet 3 | . 1 . . . . 2 . . . . . . Fabricators . | . . . . . . . . . . . . . Repair Stations . | . . . . . . . . . . . . . Recycling Units . | . . . . . . . . . . . . . Scanalyzers . | . . . . . . . . . . . . . Garrison Access . | . . . . . . . . . . . . . Data Cores Recovered . | . . . . . . . . . . . . . Used . | . . . . . . . . . . . . . Hacking Detections 11 | . . . . . 6 3 . . . . 2 . Full Trace Events 2 | . . . . . . 1 . . . . 1 . Feedback Events 1 | . . . . . . . . . . . 1 . Corruption 1 | . . . . . . . . . . . 1 . Feedback Blocked . | . . . . . . . . . . . . . Robot Schematics Acquired 6 | . . . . . . . . . 6 . . . Robots Built 1 | . . . . . . 1 . . . . . . Authchips . | . . . . . . . . . . . . . Time 116 | . . . . . . 116 . . . . . . Total Robot Build Rating 3 | . . . . . . 3 . . . . . . Part Schematics Acquired 13 | . . . . . 1 . . . 12 . . . Parts Built . | . . . . . . . . . . . . . Authchips . | . . . . . . . . . . . . . Time . | . . . . . . . . . . . . . Total Part Build Rating . | . . . . . . . . . . . . . Parts Repaired 3 | . . . . . 3 . . . . . . . Time 166 | . . . . . 166 . . . . . . . Parts Recycled . | . . . . . . . . . . . . . Recycled Matter . | . . . . . . . . . . . . . Retrieved Matter . | . . . . . . . . . . . . . Retrieved Components . | . . . . . . . . . . . . . Parts Scanalyzed 1 | . . . . . 1 . . . . . . . Part Schematics Acquired 1 | . . . . . 1 . . . . . . . Parts Damaged . | . . . . . . . . . . . . . Bothacking | -11 -10 -10 -10 -9 -8 -7 -7 -7 -7 -6 -6 -6 ------------ Run | Scr Mat Min Exi Min Mat Fac Low Low Dat Pro Fac Low Used RIF Installer . | . . . . . . . . . . . . . Robots Hacked . | . . . . . . . . . . . . . Non-combat . | . . . . . . . . . . . . . Combat . | . . . . . . . . . . . . . Robot Hacks Applied . | . . . . . . . . . . . . . Relay Couplers Released . | . . . . . . . . . . . . . Fabnet Peak Effective % . | . . . . . . . . . . . . . Robots Rewired 4 | . . . . . . . 2 2 . . . . Allies Hacked . | . . . . . . . . . . . . . Hacks Repelled . | . . . . . . . . . . . . . Allies | -11 -10 -10 -10 -9 -8 -7 -7 -7 -7 -6 -6 -6 -------- Run | Scr Mat Min Exi Min Mat Fac Low Low Dat Pro Fac Low Total Allies 19 | . . . . 3 1 1 4 4 . 1 5 . Largest Group 7 | . . . . 3 3 2 4 7 7 6 3 . Highest-Rated Group 335 | . . . . 40 40 33 132 335 335 300 270 . Highest-Rated Ally 96 | . . . . 16 16 23 46 68 68 96 95 . Total Orders 1 | . . . . . . 1 . . . . . . AID 1 | . . . . . . 1 . . . . . . Ally Attacks 249 | . . . . . 29 . 3 34 . 68 115 . Total Damage 8111 | . . . . . 304 . 93 614 . 1977 5123 . Kills 68 | . . . . . 3 . 2 4 . 15 44 . Allies Corrupted 2 | . . . . . . . . . 1 1 . . Allies Melted 1 | . . . . . . . . . . . 1 . Field Lobotomies 2 | . . . . . . . . . . . 2 . Intel | -11 -10 -10 -10 -9 -8 -7 -7 -7 -7 -6 -6 -6 ------- Run | Scr Mat Min Exi Min Mat Fac Low Low Dat Pro Fac Low Robot Analysis Total 1 | . . . . . 1 . . . . . . . Derelict Logs Recovered 4 | . . 1 . 1 . . . . . 2 . . Drone Launches . | . . . . . . . . . . . . . Drone Recoveries . | . . . . . . . . . . . . . Exploration | -11 -10 -10 -10 -9 -8 -7 -7 -7 -7 -6 -6 -6 ------------- Run | Scr Mat Min Exi Min Mat Fac Low Low Dat Pro Fac Low Turns Passed 10689 | 2 289 1712 1531 110 1739 628 1112 543 122 661 2239 1 Spaces Moved 4996 | 1 126 718 653 35 676 319 528 383 94 331 1132 . Core 279 | . . 8 . . . . . . . . 271 . Treads 2134 | . 91 292 653 35 547 . 242 . . . 274 . Legs 729 | 1 35 418 . . . . . . . . 275 . Wheels 1854 | . . . . . 129 319 286 383 94 331 312 . Hover . | . . . . . . . . . . . . . Flight . | . . . . . . . . . . . . . Fastest Speed 50 | 120 120 120 160 240 125 125 128 113 128 128 50 . Average Speed 174 | 120 192 208 230 240 171 125 179 127 128 152 157 . Slowest Speed 610 | 120 320 320 320 240 243 125 240 128 128 230 610 . Overloaded Moves . | . . . . . . . . . . . . . Propulsion Burnouts . | . . . . . . . . . . . . . Robots Hopped . | . . . . . . . . . . . . . Cave-ins Triggered . | . . . . . . . . . . . . . Exploration Rate (%) 42 | 1 19 98 72 16 66 10 61 63 68 51 28 1 Regions Visited 12 Branch Regions 8 Pre-discovered Areas 3 | . . 1 1 . . . . . 1 . . . Known Exits Taken 7 | . . . 1 . . 1 1 1 1 1 1 . Unknown Exits Taken 5 | 1 1 1 . 1 1 . . . . . . . Scrap Searched 8 | . . 1 . . . . 5 1 . 1 . . Spaces Dug 21 | . . . . . . . 14 . . . 7 . Terrain Destroyed 201 | . . . . . 18 . 61 39 . . 83 . Melee 7 | . . . . . . . . . . . 7 . Projectile 7 | . . . . . . . . . . . 7 . AOE 187 | . . . . . 18 . 61 39 . . 69 . Terrain Rammed . | . . . . . . . . . . . . . Walls Destroyed . | . . . . . . . . . . . . . Machines Disabled . | . . . . . . . . . . . . . Actions | -11 -10 -10 -10 -9 -8 -7 -7 -7 -7 -6 -6 -6 --------- Run | Scr Mat Min Exi Min Mat Fac Low Low Dat Pro Fac Low Total 6276 | 2 160 831 682 44 1069 503 643 422 95 430 1394 1 Wait 452 | . . 10 . . 195 130 19 . . 53 45 . Move 4984 | . 125 717 652 34 675 318 527 382 93 330 1131 . Hop . | . . . . . . . . . . . . . Pick Up 123 | . 11 11 17 . 30 7 15 6 . 5 21 . Fast Attach 74 | . 3 10 . . 19 6 5 2 1 2 26 . Attach 59 | . 2 6 . 1 6 2 9 4 . 3 26 . Detach 7 | . . . . . 1 1 2 . . . 3 . Swap 43 | . 2 2 3 . 13 2 8 3 . 1 9 . Drop 100 | 2 6 8 10 . 31 10 10 6 1 . 15 1 Fire 392 | . 11 65 . 9 99 27 31 10 . 32 108 . Melee 7 | . . . . . . . . . . . 7 . Ram 1 | . . . . . . . . . . . 1 . Kick 2 | . . 2 . . . . . . . . . . Crush . | . . . . . . . . . . . . . Escape Stasis . | . . . . . . . . . . . . . Rewire 30 | . . . . . . . 17 9 . 4 . . Trap 2 | . . . . . . . . . . . 2 . Miscellaneous . | . . . . . . . . . . . . . Route ------- -11/Scrapyard -10/Materials -10/Mines (discovered 3 exits: [*Mat x2] / *Exi) -10/Exiles (discovered 2 exits: *Min x2) -9/Mines -8/Materials (discovered 2 exits: *Fac x2) -7/Factory (discovered 2 exits: *Low x2) -7/Lower Caves -7/Lower Caves -7/Data Miner -6/Proximity Caves -6/Factory (discovered 2 exits: *Low x2) -6/Lower Caves History --------- Turn | Location | Event 3 | -11/Scrapyard | Discovered new exit (range 0) 3 | -11/Scrapyard | Entered Materials 152 | -10/Materials | Discovered new exit (range 16) 292 | -10/Materials | Entered Mines 317 | -10/Mines | Build established: Mutant 426 | -10/Mines | Lost 6 parts (3n2u1w) 578 | -10/Mines | Discovered new exit (range 8) 742 | -10/Mines | Deemed a non-threat by the Exiles lab entrance 742 | -10/Mines | Discovered new exit (range 5) 883 | -10/Mines | Discovered new exit (range 9) 890 | -10/Mines | Lost 3 parts (1p2w) 964 | -10/Mines | Found a damaged Exp. Sensor Array with a note attached 967 | -10/Mines | Found Prototype Device 967 | -10/Mines | Identified Exp. Sensor Array 1162 | -10/Mines | Build established: Scavenger-Mutant 1459 | -10/Mines | Core integrity fell below 50% 1672 | -10/Mines | Learned location of Storage (-9) 2004 | -10/Mines | Entered Exiles 2005 | -10/Exiles | Identified exit to Mines 2091 | -10/Exiles | Met 8R-AWN 2136 | -10/Exiles | Met EX-HEX 2270 | -10/Exiles | Met EX-DEC 2286 | -10/Exiles | Learned location of Zion (-6) 2815 | -10/Exiles | Met EX-BIN 2833 | -10/Exiles | Aligned with FarCom system 2834 | -10/Exiles | Given EX-Vault access code 2873 | -10/Exiles | Opened EX-Vault 2884 | -10/Exiles | Found Supersonic Drone Bay 2888 | -10/Exiles | Found Cloak of Protection 2891 | -10/Exiles | Found Field Lobotomy Kit 2922 | -10/Exiles | Warned to stay clear of 0b10 Research branches 3535 | -10/Exiles | Stole three prototypes: Cloak of Protection, Supersonic Drone Bay, Field Lobotomy Kit 3535 | -10/Exiles | Entered Mines 3542 | -9/Mines | Met a Derelict bent on vengeance 3595 | -9/Mines | Discovered new exit (range 11) 3631 | -9/Mines | Learned Materials stockpile data 3631 | -9/Mines | Assisted by bots powering up and referring to "LRC-V3" 3645 | -9/Mines | Entered Materials 3645 | -8/Materials | Accompanied by 3 allies 3645 | -8/Materials | Evolved 4 slots: Propulsion x1, Utility x3 3717 | -8/Materials | Garrison activated, responded to threat 4292 | -8/Materials | Repaired Imp. Ion Engine 4402 | -8/Materials | Repaired Exp. Sensor Array 4432 | -8/Materials | Repaired Lgt. Armor Plating 4780 | -8/Materials | Build established: Mutant 5022 | -8/Materials | Discovered new exit (range 15) 5086 | -8/Materials | Lost 3 parts (3u) 5299 | -8/Materials | Discovered new exit (range 15) 5384 | -8/Materials | Entered Factory 5384 | -7/Factory | Accompanied by 1 ally 5384 | -7/Factory | Evolved 2 slots: Utility x2 5386 | -7/Factory | FarCom data flow suspended 5419 | -7/Factory | Identified exit to Lower Caves 5566 | -7/Factory | Fabricated M-28 Smith (x1) 6012 | -7/Factory | Entered Lower Caves 6043 | -7/Lower Caves | Attacked by a faux Warlord 6068 | -7/Lower Caves | Destroyed 7 combat bots 6101 | -7/Lower Caves | Lost 9 parts (2p5n2w) 7079 | -7/Lower Caves | Encountered a Warlord checkpoint 7093 | -7/Lower Caves | Discovered new exit (range 15) 7123 | -7/Lower Caves | Identified exit to Lower Caves 7124 | -7/Lower Caves | Entered another Lower Caves area 7124 | -7/Lower Caves | Accompanied by 4 allies 7577 | -7/Lower Caves | Spotted XY-6Y5(f) 7578 | -7/Lower Caves | Encountered a Master Thief 7578 | -7/Lower Caves | Spotted ZR-DPX(f) 7578 | -7/Lower Caves | Spotted AP-S5D(f) 7578 | -7/Lower Caves | Spotted RP-T2R(f) 7579 | -7/Lower Caves | Encountered a Master Thief 7579 | -7/Lower Caves | Encountered a Master Thief 7579 | -7/Lower Caves | Encountered a Master Thief 7579 | -7/Lower Caves | Spotted 58-UZO(f) 7579 | -7/Lower Caves | Exp. Sensor Array stolen by Master Thief 7580 | -7/Lower Caves | Encountered a Master Thief 7580 | -7/Lower Caves | Imp. Deuterium Engine stolen by Master Thief 7582 | -7/Lower Caves | Mak. Armor Plating stolen by Master Thief 7584 | -7/Lower Caves | Hvy. Missile Launcher stolen by Master Thief 7588 | -7/Lower Caves | Rewired XY-6Y5(f) 7596 | -7/Lower Caves | Rewired RP-T2R(f) 7610 | -7/Lower Caves | Exp. Sensor Array stolen by Master Thief 7643 | -7/Lower Caves | Discovered new exit (range 4) 7646 | -7/Lower Caves | Identified exit to Data Miner 7667 | -7/Lower Caves | Entered Data Miner 7667 | -7/Data Miner | Accompanied by 7 allies 7668 | -7/Data Miner | Discovered new exit (range 6) 7692 | -7/Data Miner | Met Data Miner 7715 | -7/Data Miner | Learned location of Section 7 (-2) 7715 | -7/Data Miner | Acquired the access code to Warlord's prototype stash 7741 | -7/Data Miner | Received God Mode back door access code from Data Miner 7787 | -7/Data Miner | Identified exit to Proximity Caves 7789 | -7/Data Miner | Entered Proximity Caves 7789 | -6/Proximity Caves | Accompanied by 6 allies 7862 | -6/Proximity Caves | Escorted by Enhanced Grunt 7893 | -6/Proximity Caves | Learned Factory trap positions 7981 | -6/Proximity Caves | Core integrity fell below 50% 7994 | -6/Proximity Caves | Attracted the attention of an 0b10 checkpoint 7997 | -6/Proximity Caves | System corruption reached 10% 8160 | -6/Proximity Caves | Spotted B-75 Beast 8201 | -6/Proximity Caves | System corruption reached 30% 8235 | -6/Proximity Caves | Identified exit to Factory 8450 | -6/Proximity Caves | Entered Factory 8450 | -6/Factory | Evolved 2 slots: Propulsion x1, Utility x1 8451 | -6/Factory | Loaded intel: 115 trap records 8484 | -6/Factory | Spotted B-75 Beast 9227 | -6/Factory | Assimilated B-75 Beast with FLK Orb 9272 | -6/Factory | Lost 6 parts (1p2n2u1w) 9463 | -6/Factory | System corruption reached 10% 9463 | -6/Factory | System corruption reached 30% 9525 | -6/Factory | Build established: Scavenger-Mutant 9639 | -6/Factory | Allies destroyed TZ-9UK(B) 9718 | -6/Factory | Lost 3 parts (1n1u1w) 9993 | -6/Factory | Garrison activated, responded to threat 10127 | -6/Factory | Cargo convoy interrupted 10141 | -6/Factory | Lost 7 parts (1p3n1u2w) 10185 | -6/Factory | Found Latent Energy Streamer 10429 | -6/Factory | Core integrity fell below 50% 10506 | -6/Factory | Assimilated X-72 Disruptor with FLK Orb 10520 | -6/Factory | Core integrity fell below 20% 10542 | -6/Factory | Released all parts (8) 10572 | -6/Factory | Lost 10 parts (1p4n2u3w) 10573 | -6/Factory | Identified exit to Lower Caves 10689 | -6/Factory | Entered Lower Caves 10690 | -6/Lower Caves | Destroyed by G-67 Veteran with Plasma Rifle Last Messages --------------- 10638_ Acquired Prototype Energy Cannon. 10639_ Acquired Prototype Storage. 10639_ Identified Exp. Energy Well. 10640_ R-10 Processor collects Prototype Device. 10644_ R-10 Processor collects Exp. Energy Well. 10652_ Acquired Corrupted Carbon-fiber Leg. 10652_ Integrated Corrupted Carbon-fiber Leg (+2). 10653_ Acquired 7 matter. 10654_ Acquired 1 matter. 10655_ U-05 Engineer lays Concrete. 10656_ Acquired 8 matter. 10662_ Acquired 21 matter. 10665_ Acquired 14 matter. 10668_ VQIQ